bitfinex-derivatives/quotes_BTCF0:USTF0_20260127
["timestamp","ask_amount","ask_price","bid_price","bid_amount"]
[1769506910516,0.01150427,88079.0,88064.0,0.11995457]
[1769506910814,0.00013627,88078.0,88064.0,0.11995457]
[1769506920930,0.48352,88091.0,88066.0,0.12]
[1769506922234,0.011367,88090.0,88066.0,0.12]
[1769506923431,0.011368,88081.0,88066.0,0.12]
[1769506924835,0.00153403,88080.0,88066.0,0.12]
[1769506927537,0.011368,88079.0,88066.0,0.12]
[1769506928332,0.01287617,88079.0,88066.0,0.12]
[1769506930034,0.01287617,88079.0,88066.0,0.22232]
[1769506931539,0.00150817,88079.0,88066.0,0.22232]
[1769506931741,0.00150817,88079.0,88067.0,0.11953432]
[1769506933143,0.00161365,88083.0,88067.0,0.11953432]
[1769506933343,0.00161365,88083.0,88067.0,0.01613654]
[1769506933737,0.011368,88082.0,88067.0,0.01613654]
[1769506934238,0.00161365,88083.0,88067.0,0.01613654]
[1769506934443,0.011368,88081.0,88067.0,0.01613654]
[1769506934835,0.11637943,88081.0,88067.0,0.01613654]
[1769506939243,0.10501143,88081.0,88067.0,0.01613654]
[1769506946855,0.10720997,88079.0,88067.0,0.01613654]
[1769506949054,0.10720997,88079.0,88066.0,0.10232]
[1769506953162,0.10720997,88079.0,88066.0,0.21096764]
[1769506954459,0.10720997,88079.0,88067.0,0.10864764]
[1769506957163,0.11076361,88086.0,88070.0,0.10864764]
[1769506963167,0.11076361,88086.0,88070.0,0.12001664]
[1769506965872,0.12160557,88085.0,88070.0,0.10864764]
[1769506971676,0.011368,88083.0,88070.0,0.10864764]
[1769506972375,0.12130353,88083.0,88070.0,0.10864764]
[1769506974279,0.011369,88077.0,88067.0,0.10232]
[1769506974665,0.011369,88077.0,88058.0,0.011371]
[1769506974870,0.11982851,88075.0,88059.0,0.40176]
[1769506975070,0.11982851,88075.0,88058.0,0.10232]
[1769506975374,0.11982851,88066.0,88046.0,0.011373]
[1769506975677,0.11982851,88066.0,88050.0,0.011372]
[1769506975878,0.11982851,88066.0,88051.0,0.10232]
[1769506976178,0.11982851,88066.0,88052.0,0.11700724]
[1769506981482,0.11982851,88070.0,88052.0,0.12837924]
[1769506981679,0.11982851,88069.0,88052.0,0.12837924]
[1769506990705,0.11982851,88069.0,88055.0,0.11700724]
[1769506992900,0.11982851,88082.0,88063.0,0.11700724]
[1769506993105,0.14660756,88080.0,88063.0,0.11700724]
[1769506994305,0.14660756,88080.0,88065.0,0.11700724]
[1769506995103,0.10232,88084.0,88065.0,0.11700724]
[1769506995502,0.10232,88084.0,88067.0,0.11700724]
[1769506995701,0.011368,88083.0,88067.0,0.11700724]
[1769506996001,0.14660756,88080.0,88067.0,0.11700724]
[1769506999614,0.10232,88084.0,88067.0,0.11700724]
[1769507000114,0.14660756,88080.0,88067.0,0.11700724]
[1769507000811,0.10232,88084.0,88067.0,0.11700724]
[1769507001212,0.10232,88084.0,88067.0,0.12837724]
[1769507005022,0.10232,88084.0,88067.0,0.11700724]
[1769507005219,0.22189253,88084.0,88067.0,0.11700724]
[1769507005415,0.11957253,88076.0,88060.0,0.011371]
[1769507005622,0.11957253,88071.0,88061.0,0.10232]
[1769507006420,0.14660756,88072.0,88061.0,0.22031499]
[1769507007019,0.11957253,88076.0,88062.0,0.11799499]
[1769507010026,0.15797556,88080.0,88062.0,0.12936499]
[1769507010222,0.11957253,88079.0,88062.0,0.12936499]
[1769507012433,0.11957253,88079.0,88064.0,0.01137]
[1769507012633,0.11957253,88083.0,88065.0,0.11799499]
[1769507013432,0.011367,88086.0,88067.0,0.11799499]
[1769507014021,0.011367,88086.0,88069.0,0.11799499]
[1769507014429,0.22189253,88088.0,88069.0,0.11799499]
[1769507014629,0.13093953,88087.0,88069.0,0.11799499]
[1769507018833,0.26618009,88080.0,88062.0,0.11799499]
[1769507019034,0.26618009,88080.0,88064.0,0.11799499]
[1769507023439,0.26618009,88080.0,88065.0,0.10232]
[1769507023743,0.26618009,88080.0,88065.0,0.22031499]
[1769507023944,0.26618009,88080.0,88066.0,0.11799499]
[1769507025443,0.26618009,88080.0,88066.0,0.02026673]
[1769507027143,0.34559749,88084.0,88070.0,0.011369]
[1769507027343,0.22602496,88084.0,88071.0,0.011369]
[1769507027542,0.22602496,88088.0,88072.0,0.11799499]
[1769507027746,0.22602496,88089.0,88076.0,0.11799499]
[1769507027937,0.22602496,88090.0,88076.0,0.11799499]
[1769507028242,0.22602496,88091.0,88078.0,0.11799499]
[1769507028444,0.28243988,88099.0,88086.0,0.11799499]
[1769507028646,0.11957253,88102.0,88088.0,0.11799499]
[1769507029035,0.14660756,88100.0,88088.0,0.11799499]
[1769507029238,0.13093853,88099.0,88083.0,0.10232]
[1769507029437,0.11957253,88092.0,88083.0,0.10232]
[1769507033448,0.11957253,88092.0,88078.0,0.23168299]
[1769507033851,0.11957253,88092.0,88079.0,0.11799499]
[1769507035745,0.1169437,88089.0,88068.0,0.01137]
[1769507035939,0.1169437,88089.0,88069.0,0.53168]
[1769507036147,0.1169437,88089.0,88070.0,0.011369]
[1769507037847,0.1169437,88087.0,88069.0,0.65048934]
[1769507038047,0.1169437,88085.0,88069.0,0.53168]
[1769507038555,0.1169437,88085.0,88070.0,0.011369]
[1769507038743,0.1169437,88085.0,88070.0,0.13017834]
[1769507039146,0.1169437,88085.0,88072.0,0.13017834]
[1769507042149,0.1169437,88085.0,88072.0,0.11880934]
[1769507042959,0.1169437,88085.0,88072.0,0.13017834]
[1769507043154,0.1169437,88085.0,88069.0,0.54305]
[1769507043361,0.1169437,88085.0,88069.0,0.53168]
[1769507043859,0.1169437,88083.0,88069.0,0.53168]
[1769507044060,0.1169437,88081.0,88069.0,0.53168]
[1769507044258,0.1169437,88081.0,88061.0,0.43104]
[1769507044463,0.1169437,88081.0,88062.0,0.10232]
[1769507045559,0.1169437,88081.0,88062.0,0.11369]
[1769507045749,0.1169437,88081.0,88062.0,0.23249934]
[1769507046259,0.1169437,88081.0,88064.0,0.01137]
[1769507046460,0.1169437,88081.0,88065.0,0.11880934]
[1769507050360,0.1169437,88081.0,88066.0,0.01137]
[1769507051963,0.1169437,88081.0,88066.0,0.13017934]
[1769507054458,0.1169437,88081.0,88066.0,0.11880934]
[1769507059072,0.1169437,88081.0,88066.0,0.13017934]
[1769507059870,0.11895263,88084.0,88066.0,0.13017934]
[1769507062175,0.11895263,88084.0,88068.0,0.12766677]
[1769507063971,0.10232,88085.0,88068.0,0.12766677]
[1769507064168,0.011367,88092.0,88073.0,0.10918895]
[1769507064363,0.113687,88092.0,88073.0,0.10918895]
[1769507065072,0.10824665,88091.0,88073.0,0.10918895]
[1769507065773,0.011367,88090.0,88073.0,0.10918895]
[1769507066373,0.10824665,88091.0,88073.0,0.10918895]
[1769507068577,0.10232,88092.0,88073.0,0.12055795]
[1769507069576,0.10232,88092.0,88073.0,0.10918895]
[1769507069577,0.011367,88091.0,88073.0,0.10918895]
[1769507069778,0.11961365,88091.0,88073.0,0.10918895]
[1769507072574,0.10824665,88091.0,88075.0,0.10918895]
[1769507072777,0.10824665,88091.0,88076.0,0.12055795]
[1769507073475,0.10824665,88091.0,88076.0,0.10918895]
[1769507081592,0.11961365,88090.0,88076.0,0.10918895]
[1769507082070,0.011367,88088.0,88076.0,0.10918895]
[1769507084579,0.11961365,88088.0,88076.0,0.10918895]
[1769507085686,0.011367,88086.0,88076.0,0.10918895]
[1769507085989,0.011367,88086.0,88072.0,0.10232]
[1769507086182,0.011367,88086.0,88073.0,0.10918895]
[1769507086583,0.10824665,88088.0,88073.0,0.10918895]
[1769507088491,0.011367,88087.0,88073.0,0.10918895]
[1769507090188,0.11961365,88087.0,88073.0,0.10918895]
[1769507094780,0.10824665,88087.0,88073.0,0.10918895]
[1769507097187,0.011367,88086.0,88073.0,0.10918895]
[1769507097492,0.10824665,88087.0,88073.0,0.10918895]
[1769507101292,0.011367,88090.0,88073.0,0.10918895]
[1769507101494,0.12110841,88090.0,88073.0,0.10918895]
[1769507101696,0.26762474,88090.0,88073.0,0.10918895]
[1769507101885,0.10974141,88089.0,88073.0,0.10918895]
[1769507102090,0.12110841,88088.0,88073.0,0.10918895]
[1769507104185,0.14651633,88090.0,88073.0,0.10918895]
[1769507104385,0.25625774,88090.0,88073.0,0.10918895]
[1769507105287,0.10974141,88089.0,88073.0,0.10918895]
[1769507113998,0.12110941,88083.0,88072.0,0.10232]
[1769507114600,0.12110941,88083.0,88071.0,0.10232]
[1769507115007,0.12110941,88083.0,88071.0,0.21842888]
[1769507115709,0.10974141,88083.0,88071.0,0.21842888]
[1769507118112,0.12110941,88082.0,88066.0,0.11610888]
[1769507118317,0.12110941,88082.0,88067.0,0.10232]
[1769507118617,0.10974141,88082.0,88068.0,0.11610888]
[1769507123520,0.10974141,88082.0,88069.0,0.10232]
[1769507123822,0.10974141,88082.0,88069.0,0.21204936]
[1769507124022,0.10974141,88082.0,88070.0,0.10972936]
[1769507125215,0.011367,88087.0,88070.0,0.10972936]
[1769507125417,0.11562708,88086.0,88070.0,0.10972936]
[1769507126124,0.11562708,88086.0,88071.0,0.11763026]
[1769507127619,0.11562708,88086.0,88071.0,0.12899926]
[1769507127920,0.11562708,88093.0,88071.0,0.11763026]
[1769507128723,0.011367,88091.0,88074.0,0.11763026]
[1769507128922,0.12699408,88091.0,88074.0,0.11763026]
[1769507131619,0.11562708,88098.0,88081.0,0.11763026]
[1769507131823,0.25235928,88099.0,88081.0,0.11763026]
[1769507131824,0.02623257,88099.0,88081.0,0.11763026]
[1769507132124,0.02623257,88099.0,88089.0,0.11763026]
[1769507132713,0.03759857,88099.0,88080.0,0.15788433]
[1769507133026,0.011366,88097.0,88081.0,0.11763026]
[1769507133825,0.12699308,88097.0,88081.0,0.11763026]
[1769507134818,0.11562708,88095.0,88079.0,0.10232]
[1769507135126,0.11562708,88092.0,88079.0,0.21995026]
[1769507136227,0.11562708,88092.0,88080.0,0.11763026]
[1769507138023,0.011368,88085.0,88070.0,0.11763026]
[1769507138234,0.14651633,88080.0,88071.0,0.53684]
[1769507138531,0.11562708,88085.0,88071.0,0.53684]
[1769507139134,0.11562708,88085.0,88071.0,0.65447026]
[1769507142031,0.11562708,88085.0,88072.0,0.43596]
[1769507142934,0.11562708,88085.0,88067.0,0.11763026]
[1769507143125,0.14651633,88080.0,88068.0,0.51368]
[1769507143331,0.11562708,88083.0,88068.0,0.51368]
[1769507144025,0.12699508,88082.0,88068.0,0.51368]
[1769507144232,0.14651633,88080.0,88068.0,0.51368]
[1769507145725,0.14651633,88080.0,88063.0,0.02623256]
[1769507145726,0.14651633,88080.0,88065.0,0.10232]
[1769507145925,0.15788533,88073.0,88063.0,0.02623256]
[1769507146536,0.14651633,88073.0,88063.0,0.02623256]
[1769507146725,0.11562708,88076.0,88063.0,0.02623256]
[1769507148333,0.011369,88075.0,88063.0,0.02623256]
[1769507148530,0.12699608,88075.0,88063.0,0.02623256]
[1769507149135,0.12699608,88072.0,88063.0,0.02623256]
[1769507149733,0.12699608,88072.0,88058.0,0.10232]
[1769507150032,0.14651633,88080.0,88053.0,0.11763026]
[1769507150033,0.12699708,88066.0,88053.0,0.11763026]
[1769507150234,0.11562708,88062.0,88039.0,0.1361271]
[1769507150435,0.14651633,88049.0,88033.0,0.11990215]
[1769507150736,0.32465953,88049.0,88033.0,0.11990215]
[1769507151034,0.07458373,88047.0,88033.0,0.00227189]
[1769507151338,0.07458373,88040.0,88027.0,8.194e-05]
[1769507151538,0.07458373,88039.0,88027.0,8.194e-05]
[1769507152042,0.011374,88038.0,88027.0,8.194e-05]
[1769507152239,0.07458373,88037.0,88027.0,8.194e-05]
[1769507157237,0.10232,88039.0,88028.0,0.10855947]
[1769507160234,0.07860228,88045.0,88028.0,0.10855947]
[1769507160440,0.14651633,88050.0,88027.0,8.194e-05]
[1769507160441,0.10236,88050.0,88036.0,0.10855947]
[1769507160641,0.10236,88050.0,88041.0,0.10855947]
[1769507160841,0.011371,88059.0,88041.0,0.10855947]
[1769507161034,0.10236,88058.0,88041.0,0.10855947]
[1769507161437,0.011371,88061.0,88041.0,0.10855947]
[1769507161639,0.10463086,88073.0,88051.0,0.10855947]
[1769507162233,0.01137,88068.0,88051.0,0.10855947]
[1769507162438,0.01137,88068.0,88053.0,0.10855947]
[1769507163643,0.011369,88072.0,88053.0,0.10855947]
[1769507164244,0.21997673,88073.0,88053.0,0.10855947]
[1769507165038,0.011368,88080.0,88059.0,0.10855947]
[1769507165344,0.12671287,88089.0,88065.0,0.10855947]
[1769507165639,0.12671287,88089.0,88067.0,0.10855947]
[1769507165847,0.011367,88093.0,88067.0,0.10855947]
[1769507166264,0.011367,88090.0,88069.0,0.10855947]
[1769507168042,0.011366,88094.0,88071.0,0.10855947]
[1769507171350,0.02624018,88099.0,88078.0,0.10855947]
[1769507171550,0.02624018,88099.0,88079.0,0.10855947]
[1769507171750,0.02624018,88099.0,88079.0,0.08232691]
[1769507173753,0.011366,88098.0,88079.0,0.08232691]
[1769507175154,0.011366,88095.0,88079.0,0.08232691]
[1769507175348,0.15294123,88099.0,88079.0,0.08232691]
[1769507179057,0.02622936,88099.0,88079.0,0.09369491]
[1769507179457,0.011366,88098.0,88079.0,0.08232691]
[1769507179954,0.02622936,88099.0,88079.0,0.08232691]
[1769507180159,0.02622936,88099.0,88080.0,0.011368]
[1769507180457,0.02622936,88099.0,88081.0,0.10855947]
[1769507180658,0.10232,88100.0,88081.0,0.10855947]
[1769507181959,0.011366,88099.0,88081.0,0.10855947]
[1769507182762,0.10829577,88098.0,88081.0,0.10855947]
[1769507183456,0.011366,88096.0,88077.0,0.10818034]
[1769507183662,0.10829577,88095.0,88078.0,0.10232]
[1769507184161,0.10829577,88095.0,88079.0,0.10818034]
[1769507186959,0.10829577,88095.0,88081.0,0.11292349]
[1769507188058,0.10829577,88095.0,88082.0,0.12429149]
[1769507188261,0.11947112,88099.0,88082.0,0.12429149]
[1769507190965,0.10810512,88099.0,88082.0,0.12429149]
[1769507194163,0.10232,88103.0,88085.0,0.11292349]
[1769507195170,0.10232,88103.0,88087.0,0.11292349]
[1769507196870,0.11947012,88102.0,88087.0,0.11292349]
[1769507200777,0.10810512,88102.0,88087.0,0.11292349]
[1769507204275,0.10810512,88102.0,88089.0,0.11292349]
[1769507204477,0.10232,88103.0,88089.0,0.11292349]
[1769507205080,0.10232,88103.0,88090.0,0.12429049]
[1769507205273,0.11328,88107.0,88094.0,0.11292349]
[1769507205467,0.22612671,88105.0,88094.0,0.01256454]
[1769507205773,0.22612671,88105.0,88095.0,0.011366]
[1769507205975,0.011,88107.0,88093.0,0.10228]
[1769507206176,0.00794439,88113.0,88093.0,0.10228]
[1769507206579,0.00794439,88113.0,88095.0,0.011366]
[1769507206779,0.10810512,88112.0,88093.0,0.10228]
[1769507206983,0.11946912,88111.0,88093.0,0.10228]
[1769507207185,0.00794439,88113.0,88073.0,0.1361271]
[1769507207186,0.10810512,88105.0,88073.0,0.1361271]
[1769507207378,0.10810512,88103.0,88082.0,0.011368]
[1769507207579,0.10810512,88103.0,88083.0,0.11292349]
[1769507207778,0.10810512,88103.0,88085.0,0.11292349]
[1769507210087,0.10228,88110.0,88085.0,0.11292349]
[1769507210285,0.011365,88106.0,88085.0,0.11292349]
[1769507212093,0.10810512,88105.0,88085.0,0.11292349]
[1769507212291,0.11947012,88103.0,88079.0,0.11292349]
[1769507212599,0.11947012,88103.0,88081.0,0.11292349]
[1769507215598,0.11947012,88103.0,88082.0,0.11724377]
[1769507215891,0.11224824,88099.0,88082.0,0.11724377]
[1769507216096,0.11224824,88099.0,88080.0,0.10228]
[1769507216293,0.11224824,88099.0,88080.0,0.21952377]
[1769507216796,0.11224824,88099.0,88081.0,0.11724377]
[1769507217592,0.12361424,88099.0,88081.0,0.11724377]
[1769507220592,0.10228,88110.0,88077.0,0.11724377]
[1769507220593,0.11224824,88090.0,88077.0,0.11724377]
[1769507220991,0.10228,88099.0,88077.0,0.11724377]
[1769507220992,0.12361524,88089.0,88077.0,0.11724377]
[1769507221191,0.12361524,88089.0,88073.0,0.10455086]
[1769507221588,0.12361524,88089.0,88073.0,0.00227086]
[1769507221790,0.11224824,88072.0,88061.0,0.2384071]
[1769507222101,0.11224824,88072.0,88055.0,0.10228]
[1769507222397,0.11224824,88070.0,88055.0,0.10228]
[1769507222601,0.11224824,88070.0,88055.0,0.21952377]
[1769507222801,0.11224824,88070.0,88056.0,0.11724377]
[1769507223704,0.1065711,88070.0,88056.0,0.11724377]
[1769507226607,0.12361824,88069.0,88056.0,0.11724377]
[1769507230609,0.11224824,88069.0,88056.0,0.11724377]
[1769507231507,0.12361824,88069.0,88056.0,0.11724377]
[1769507231699,0.12361824,88065.0,88055.0,0.10228]
[1769507232500,0.11224824,88055.0,88037.0,0.11724377]
[1769507232810,0.11224824,88051.0,88031.0,0.4396]
[1769507233007,0.11224824,88049.0,88031.0,0.55684377]
[1769507233202,0.11224824,88047.0,88031.0,0.55684377]
[1769507233407,0.11224824,88042.0,88027.0,8.194e-05]
[1769507233601,0.11224824,88039.0,88027.0,8.194e-05]
[1769507236402,0.011372,88049.0,88030.0,0.11724377]
[1769507236603,0.113693,88046.0,88030.0,0.11724377]
[1769507238206,0.21456824,88046.0,88030.0,0.11724377]
[1769507239813,0.011373,88045.0,88030.0,0.11724377]
[1769507240314,0.21456824,88046.0,88030.0,0.11724377]
[1769507240510,0.011372,88053.0,88037.0,0.11724377]
[1769507240710,0.21456824,88056.0,88037.0,0.11724377]
[1769507240907,0.11224824,88055.0,88037.0,0.11724377]
[1769507241113,0.011372,88052.0,88037.0,0.11724377]
[1769507244515,0.11224824,88055.0,88028.0,0.11197256]
[1769507244516,0.11202133,88041.0,88028.0,0.11197256]
[1769507244710,0.25860088,88040.0,88028.0,0.11197256]
[1769507245118,0.11202133,88040.0,88028.0,0.11197256]
[1769507249218,0.011373,88045.0,88028.0,0.11197256]
[1769507249518,0.11550128,88044.0,88031.0,0.11197256]
[1769507249819,0.11550128,88043.0,88031.0,0.11197256]
[1769507250017,0.011373,88045.0,88031.0,0.11197256]
[1769507250018,0.11550128,88042.0,88031.0,0.11197256]
[1769507250217,0.11550128,88041.0,88031.0,0.11197256]
[1769507250418,0.011373,88045.0,88031.0,0.11197256]
[1769507250618,0.11550582,88044.0,88031.0,0.11197256]
[1769507250919,0.11550582,88043.0,88031.0,0.11197256]
[1769507251217,0.11550582,88042.0,88031.0,0.11197256]
[1769507251421,0.11550582,88041.0,88031.0,0.11197256]
[1769507251606,0.11550582,88040.0,88031.0,0.11197256]
[1769507251806,0.011373,88045.0,88031.0,0.11197256]
[1769507252011,0.11556061,88044.0,88031.0,0.11197256]
[1769507252211,0.11556061,88043.0,88031.0,0.11197256]
[1769507252412,0.11202133,88050.0,88033.0,0.11197256]
[1769507252613,0.10236,88051.0,88033.0,0.11197256]
[1769507253117,0.21438133,88054.0,88033.0,0.11197256]
[1769507253620,0.011372,88051.0,88035.0,0.11197256]
[1769507254213,0.113732,88054.0,88041.0,0.11197256]
[1769507255520,0.11202133,88050.0,88033.0,0.10236]
[1769507255821,0.11202133,88048.0,88033.0,0.10236]
[1769507256315,0.11202133,88048.0,88027.0,0.01145694]
[1769507256316,0.11202133,88039.0,88027.0,8.194e-05]
[1769507256520,0.11202133,88036.0,88021.0,0.11197256]
[1769507257724,0.11202133,88036.0,88021.0,0.12334856]
[1769507261918,9.433e-05,88038.0,88024.0,0.12334756]
[1769507262114,9.433e-05,88038.0,88026.0,0.011375]
[1769507262318,9.433e-05,88038.0,88027.0,0.11197256]
[1769507262526,9.433e-05,88038.0,88026.0,0.011375]
[1769507263923,0.22657242,88048.0,88020.0,0.18337144]
[1769507264123,0.011373,88046.0,88029.0,0.011375]
[1769507264625,0.10924145,88045.0,88030.0,0.11197256]
[1769507264932,0.10924145,88044.0,88030.0,0.11197256]
[1769507265128,0.10924145,88043.0,88030.0,0.11197256]
[1769507265329,0.10924145,88042.0,88030.0,0.11197256]
[1769507265521,0.10924145,88041.0,88030.0,0.11197256]
[1769507265721,0.10924145,88040.0,88030.0,0.11197256]
[1769507265928,0.10924145,88039.0,88030.0,0.11197256]
[1769507266127,0.10924145,88038.0,88030.0,0.11197256]
[1769507266323,0.10924145,88037.0,88030.0,0.11197256]
[1769507266524,0.10924145,88036.0,88030.0,0.11197256]
[1769507266823,4.5e-07,88035.0,88030.0,0.12334756]
[1769507267027,0.11202133,88058.0,88043.0,0.11197256]
[1769507267226,0.10236,88060.0,88047.0,0.11197256]
[1769507267625,0.12339233,88059.0,88042.0,0.011373]
[1769507268025,0.12339233,88059.0,88042.0,0.12334556]
[1769507268026,0.11202133,88059.0,88042.0,0.12334556]
[1769507268832,0.11202133,88059.0,88042.0,0.11197256]
[1769507268833,0.011371,88058.0,88042.0,0.11197256]
[1769507271030,0.11202133,88059.0,88042.0,0.11197256]
[1769507278034,0.10236,88060.0,88045.0,0.10912251]
[1769507279342,0.10236,88060.0,88047.0,0.10912251]
[1769507280044,0.11102603,88059.0,88043.0,0.10912251]
[1769507280237,0.11102603,88059.0,88041.0,0.10236]
[1769507280541,0.11102603,88059.0,88042.0,0.10912251]
[1769507280747,0.12239703,88057.0,88042.0,0.10912251]
[1769507280932,0.12239703,88057.0,88041.0,0.10236]
[1769507281342,0.12239703,88057.0,88038.0,0.10912251]
[1769507281543,0.12239703,88057.0,88039.0,0.10236]
[1769507281738,0.12239703,88057.0,88040.0,0.10912251]
[1769507282441,0.11102603,88057.0,88041.0,0.12049551]
[1769507283139,0.11102603,88057.0,88041.0,0.10912251]
[1769507283339,0.10236,88060.0,88043.0,0.12049551]
[1769507283540,0.21338603,88060.0,88043.0,0.12049551]
[1769507283743,0.11102603,88059.0,88043.0,0.10912251]
[1769507284042,0.11102603,88059.0,88044.0,0.011373]
[1769507286443,0.11102603,88059.0,88044.0,0.12049551]
[1769507287039,0.12239703,88059.0,88044.0,0.10912251]
[1769507287640,0.12239703,88057.0,88039.0,0.21148251]
[1769507287846,0.12239703,88057.0,88040.0,0.10912251]
[1769507288438,0.11102603,88054.0,88040.0,0.10912251]
[1769507288847,0.11102603,88054.0,88037.0,0.011374]
[1769507289048,0.11102603,88054.0,88038.0,0.10236]
[1769507289450,0.11102603,88054.0,88039.0,0.12049551]
[1769507297750,0.12239703,88060.0,88043.0,0.12049551]
[1769507297957,0.011371,88060.0,88043.0,0.12049551]
[1769507298857,0.12239703,88060.0,88043.0,0.12049551]
[1769507300860,0.11102603,88060.0,88046.0,0.12049551]
[1769507302659,0.10236,88062.0,88051.0,0.11922129]
[1769507305068,0.10848321,88050.0,88033.0,0.4368]
[1769507305452,0.10848321,88050.0,88032.0,0.10236]
[1769507305651,0.10848321,88043.0,88032.0,0.10236]
[1769507312064,0.10848321,88043.0,88033.0,0.011374]
[1769507316160,0.10848321,88043.0,88036.0,0.011374]
[1769507328874,0.10848321,88043.0,88035.0,0.011374]
[1769507335184,0.10848321,88043.0,88028.0,0.12082999]
[1769507335479,0.10848321,88043.0,88038.0,0.011373]
[1769507335683,0.22657242,88062.0,88036.0,0.10945499]
[1769507335986,0.10236,88065.0,88048.0,0.10945499]
[1769507336678,0.01137,88064.0,88044.0,0.011373]
[1769507336879,0.011371,88060.0,88042.0,0.113733]
[1769507337574,0.11885558,88059.0,88042.0,0.113733]
[1769507337783,0.11885558,88059.0,88042.0,0.10236]
[1769507339585,0.11885558,88059.0,88046.0,0.011373]
[1769507340076,0.11885558,88059.0,88043.0,0.10945499]
[1769507340382,0.11885558,88059.0,88048.0,0.011372]
[1769507341291,0.11885558,88059.0,88043.0,0.10945499]
[1769507342486,0.11885558,88059.0,88045.0,0.011373]
[1769507343884,0.11885558,88059.0,88047.0,0.011372]
[1769507344073,0.11885558,88059.0,88045.0,0.12082799]
[1769507345486,0.11885558,88059.0,88042.0,0.113733]
[1769507346288,0.11885558,88059.0,88044.0,0.011373]
[1769507348087,0.11885558,88064.0,88047.0,0.10945499]
[1769507348287,0.10236,88065.0,88052.0,0.10945499]
[1769507348487,0.11885558,88065.0,88052.0,0.10945499]
[1769507349187,0.11885558,88061.0,88042.0,0.10236]
[1769507349588,0.11885558,88059.0,88042.0,0.10236]
[1769507350485,0.11885558,88059.0,88043.0,0.011373]
[1769507350689,0.11885558,88059.0,88045.0,0.011373]
[1769507355197,0.11885558,88059.0,88047.0,0.011372]
[1769507355994,0.11885558,88059.0,88043.0,0.011373]
[1769507357799,0.11885558,88059.0,88045.0,0.011373]
[1769507359898,0.11885558,88059.0,88045.0,0.10945499]
[1769507360104,0.11885558,88059.0,88049.0,0.14662977]
[1769507360492,0.12103014,88069.0,88051.0,0.13030682]
[1769507361198,0.12103014,88069.0,88051.0,0.011372]
[1769507363810,0.10966014,88065.0,88047.0,0.11893482]
[1769507364008,0.10966014,88065.0,88047.0,0.13030682]
[1769507364209,0.10966014,88065.0,88048.0,0.10236]
[1769507364407,0.11697483,88063.0,88043.0,0.011373]
[1769507364612,0.11697483,88059.0,88043.0,0.011373]
[1769507365811,0.11697483,88059.0,88045.0,0.011373]
[1769507366112,0.11697483,88059.0,88043.0,0.11832484]
[1769507367409,0.11697483,88059.0,88047.0,0.011372]
[1769507369618,0.11697483,88059.0,88049.0,0.011372]
[1769507370418,0.11697483,88059.0,88045.0,0.011373]
[1769507370917,0.11697483,88059.0,88043.0,0.11832484]
[1769507371416,0.11697483,88059.0,88043.0,0.12969784]
[1769507372313,0.11697483,88057.0,88043.0,0.4344]
[1769507372615,0.11697483,88057.0,88043.0,0.16888333]
[1769507372815,0.011371,88056.0,88042.0,0.10236]
[1769507373318,0.011371,88056.0,88038.0,0.011374]
[1769507373319,0.14662977,88052.0,88031.0,0.09093911]
[1769507373518,0.011372,88047.0,88030.0,0.10236]
[1769507373817,0.15800177,88050.0,88030.0,0.113735]
[1769507374014,0.14662977,88050.0,88032.0,0.011374]
[1769507374214,0.011372,88053.0,88030.0,0.24898977]
[1769507374918,0.011372,88053.0,88030.0,0.36898977]
[1769507375319,0.011372,88053.0,88034.0,0.011374]
[1769507375518,0.24898977,88060.0,88037.0,0.12]
[1769507375519,0.011371,88057.0,88037.0,0.12]
[1769507376108,0.011371,88057.0,88036.0,0.011374]
[1769507378621,0.47556219,88060.0,88036.0,0.011374]
[1769507379121,0.11357634,88059.0,88036.0,0.011374]
[1769507379722,0.011371,88056.0,88036.0,0.131374]
[1769507380224,0.10236,88055.0,88036.0,0.131374]
[1769507380614,0.011372,88054.0,88036.0,0.131374]
[1769507387832,0.10236,88055.0,88038.0,0.011373]
[1769507389033,0.10236,88055.0,88039.0,0.12]
[1769507389535,0.10236,88054.0,88039.0,0.12]
[1769507400044,0.00024445,88053.0,88039.0,0.12]
[1769507401642,0.01161645,88053.0,88039.0,0.12]
[1769507404742,0.00024445,88053.0,88039.0,0.12]
[1769507405746,0.14662977,88050.0,88039.0,0.12]
[1769507409663,0.00024445,88053.0,88039.0,0.12]
[1769507410364,0.011372,88052.0,88039.0,0.12]
[1769507412361,0.00024445,88053.0,88039.0,0.12]
[1769507414766,0.10236,88054.0,88039.0,0.12]
[1769507416654,0.011372,88053.0,88039.0,0.12]
[1769507417566,0.10236,88054.0,88039.0,0.12]
[1769507420170,0.113732,88054.0,88039.0,0.12]
[1769507421272,0.011372,88053.0,88039.0,0.12]
[1769507421467,0.1105502,88053.0,88026.0,0.09103951]
[1769507421673,0.1105502,88053.0,88004.0,0.29490745]
[1769507421674,0.1219242,88033.0,88024.0,0.02624252]
[1769507421872,0.1219252,88031.0,88015.0,0.10236]
[1769507422375,0.1105502,88031.0,88015.0,0.10236]
[1769507422564,0.1105502,88031.0,88015.0,0.113736]
[1769507423667,0.1105502,88031.0,88016.0,0.10954208]
[1769507423874,0.1105502,88031.0,88018.0,0.10954208]
[1769507427176,0.10236,88036.0,88020.0,0.11355747]
[1769507427381,0.011373,88041.0,88020.0,0.11355747]
[1769507427680,0.10236,88040.0,88020.0,0.11355747]
[1769507428478,0.10236,88040.0,88022.0,0.11355747]
[1769507428678,0.19581671,88040.0,88022.0,0.11355747]
[1769507432083,0.10236,88039.0,88022.0,0.11355747]
[1769507432383,0.10236,88039.0,88024.0,0.11355747]
[1769507432885,0.011373,88041.0,88024.0,0.11355747]
[1769507433083,0.10236,88040.0,88024.0,0.11355747]
[1769507433784,0.19799128,88040.0,88024.0,0.11355747]
[1769507436679,0.09740819,88045.0,88028.0,0.11850751]
[1769507436880,0.10236,88044.0,88028.0,0.11850751]
[1769507437076,0.011373,88043.0,88028.0,0.11850751]
[1769507437577,0.10236,88044.0,88028.0,0.11850751]
[1769507442592,0.011373,88042.0,88028.0,0.11850751]
[1769507446484,0.10236,88044.0,88028.0,0.11850751]
[1769507448696,0.011373,88043.0,88028.0,0.11850751]
[1769507450796,0.011373,88041.0,88028.0,0.11850751]
[1769507450992,0.1018907,88043.0,88028.0,0.11850751]
[1769507451194,0.1018907,88040.0,88020.0,0.11850751]
[1769507451496,0.011374,88033.0,88020.0,0.11850751]
[1769507451695,0.10236,88044.0,88020.0,0.11850751]
[1769507451696,0.1132657,88031.0,88020.0,0.11850751]
[1769507451893,0.1018907,88031.0,88020.0,0.11850751]
[1769507452192,0.10389855,88036.0,88020.0,0.11850751]
[1769507454898,0.011374,88035.0,88020.0,0.11850751]